fUSD/lending_fUSD_20250807
["ID","MTS","AMOUNT","RATE_DAILY","PERIOD"]
[377748635,1754531446949,-151.0,0.00019885,2]
[377748637,1754531446959,-173.61139404,0.00019885,2]
[377748639,1754531446968,-151.0,0.000199,2]
[377748641,1754531446979,-153.896598,0.000199,2]
[377748643,1754531446990,-151.0,0.000199,2]
[377748645,1754531446999,-151.0,0.000199,2]
[377748647,1754531447010,-159.11165,0.000199,2]
[377748649,1754531447019,-159.11165,0.000199,2]
[377748651,1754531447028,-151.0,0.000199,2]
[377748653,1754531447038,-150.88021224,0.000199,2]
[377748655,1754531447048,-157.21404567,0.000199,2]
[377748657,1754531447057,-163.14913,0.000199,2]
[377748659,1754531447067,-2900.0,0.000199,7]
[377748661,1754531447077,-151.0,0.000199,2]
[377748663,1754531447086,-510.0,0.000199,2]
[377748665,1754531447096,-151.0,0.000199,2]
[377748667,1754531447106,-151.0,0.000199,2]
[377748669,1754531447115,-151.0,0.000199,2]
[377748671,1754531447125,-2272.0517095,0.000199,2]
[377748673,1754531447136,-150.0,0.00019926,4]
[377748675,1754531447146,-514.0,0.0001997,2]
[377748677,1754531447156,-683.5626303,0.00019984,2]
[377748679,1754531447166,-300.0,0.00019984,2]
[377748681,1754531447175,-36971.96417463,0.00019985,2]
[377751182,1754531510700,23900.0,0.00017784,2]
[377751183,1754531512057,300.0,0.00018889,3]
[377751184,1754531512488,300.0,0.00018889,3]
[377751185,1754531513538,423.472834,0.00018889,3]
[377751189,1754531655945,401.67,0.00030137,120]
[377751194,1754531749881,1500.0,0.00019178,7]
[377751195,1754531750371,1500.0,0.00019178,7]
[377751196,1754531750783,1500.0,0.00019178,7]
[377751197,1754531751224,1500.0,0.00019178,7]
[377751198,1754531751618,1500.0,0.00019178,7]
[377751199,1754531752965,1500.0,0.00019178,7]
[377751200,1754531753141,1500.0,0.00019178,7]
[377751201,1754531753231,1500.0,0.00019178,7]
[377751202,1754531753346,1500.0,0.00019178,7]
[377751203,1754531753769,1500.0,0.00019178,7]
[377751204,1754531754156,1500.0,0.00019178,7]
[377751205,1754531754631,1500.0,0.00019178,7]
[377751206,1754531755118,1500.0,0.00019178,7]
[377751207,1754531755481,1500.0,0.00019178,7]
[377751208,1754531755932,1500.0,0.00019178,7]
[377751209,1754531756285,221.04,0.00017784,2]
[377751210,1754531756689,1500.0,0.00019178,7]
[377751211,1754531756758,221.04,0.00026676,120]
[377751212,1754531756840,1205.65041263,0.00019178,7]
[377751214,1754531781079,666.0,0.00017784,3]
[377751215,1754531825147,242.0,0.000146,2]
[377751216,1754531825576,237.0,0.0001578,2]
[377751217,1754531826011,232.0,0.0001697,2]
[377751220,1754531899972,-228.0,0.0001815,2]
[377751221,1754531899998,-250.0,0.00018193,2]
[377751222,1754531900022,-294.6527397,0.00018235,2]
[377751223,1754531900051,-506.0,0.00018241,2]
[377751224,1754531900087,-250.0,0.00018328,2]
[377751225,1754531900117,-1200.0,0.00018788,2]
[377751226,1754531900142,-1000.0,0.00018789,2]
[377751227,1754531900167,-1000.0,0.00018789,2]
[377751228,1754531900193,-151.0,0.00018798,2]
[377751229,1754531900222,-487.5391,0.000188,2]
[377751230,1754531900251,-151.0,0.00018802,2]
[377751231,1754531900278,-331.49081678,0.00018816,2]
[377751232,1754531900306,-300.0,0.00018888,2]
[377751233,1754531900337,-151.0,0.00018889,2]
[377751234,1754531900363,-151.0,0.00018889,2]
[377751235,1754531900388,-156.762694,0.00018889,2]
[377751236,1754531900414,-454.424941,0.00018889,2]
[377751237,1754531900439,-210.12970852,0.00018889,2]
[377751238,1754531917335,175.0,0.00017784,7]
[377751239,1754531936700,276.4,0.00015068,2]
[377751240,1754531936906,276.4,0.00016708,2]
[377751241,1754531957453,177.70371863,0.0003,120]
[377751247,1754532364544,224.0,0.000155,2]
[377751248,1754532364982,219.0,0.0001668,2]
[377751249,1754532366480,215.0,0.0001787,2]
[377751257,1754532607420,25866.21,0.00018,2]
[377751265,1754532632340,-276.4,0.00018347,2]
[377751266,1754532632350,-273.60763268,0.00018347,2]
[377751267,1754532632360,-250.0,0.00018423,2]
[377751268,1754532632369,-351.89,0.00018551,2]
[377751269,1754532632379,-166.84,0.00018578,2]
[377751270,1754532632388,-569.26236732,0.00018621,2]
[377751271,1754532632474,-430.73763268,0.00018621,2]
[377751272,1754532632483,-188.6,0.0001865,2]
[377751274,1754532632492,-507.0,0.00018698,2]
[377751276,1754532632503,-1200.0,0.00018888,2]
[377751277,1754532632512,-160.0,0.00018889,2]
[377751278,1754532632521,-416.03518578,0.00018889,2]
[377751279,1754532632531,-277.35679052,0.00018889,2]
[377751280,1754532632540,-250.0,0.00018889,2]
[377751281,1754532632549,-250.0,0.00018889,2]
[377751282,1754532632559,-250.0,0.00018889,2]
[377751283,1754532632567,-250.0,0.00018889,2]
[377751284,1754532632577,-250.0,0.00018889,2]
[377751285,1754532632586,-250.0,0.00018889,2]
[377751286,1754532632595,-250.0,0.00018889,2]
[377751287,1754532632605,-350.0,0.00018889,2]
[377751288,1754532632614,-151.0,0.00018889,2]
[377751289,1754532632624,-151.0,0.00018889,2]
[377751291,1754532632634,-158.08022,0.00018889,2]
[377751293,1754532632644,-192.77375,0.00018889,2]
[377751295,1754532632653,-164.313746,0.00018889,2]
[377751297,1754532632663,-159.369246,0.00018889,2]
[377751299,1754532632672,-151.0,0.00018889,2]
[377751301,1754532632682,-151.0,0.00018889,2]
[377751302,1754532632691,-151.534288,0.00018889,2]
[377751304,1754532632701,-151.0,0.00018889,2]
[377751306,1754532632710,-151.0,0.00018889,2]
[377751308,1754532632727,-151.0,0.00018889,2]
[377751309,1754532632748,-151.0,0.00018889,2]
[377751311,1754532632772,-151.0,0.00018889,2]
[377751313,1754532632793,-151.0,0.00018889,2]
[377751315,1754532632817,-151.0,0.00018889,2]
[377751317,1754532632841,-151.0,0.00018889,2]
[377751319,1754532632865,-151.0,0.00018889,2]
[377751321,1754532632887,-171.306468,0.00018889,2]
[377751323,1754532632909,-154.0664629,0.00018889,2]
[377751325,1754532632934,-151.0,0.0001889,2]
[377751327,1754532632957,-2000.0,0.00018897,2]
[377751329,1754532632980,-2000.0,0.00018897,2]
[377751331,1754532633004,-280.401,0.00018897,2]
[377751333,1754532633026,-151.0,0.000189,2]
[377751335,1754532633049,-151.0,0.000189,2]
[377751337,1754532633072,-151.0,0.000189,2]
[377751339,1754532633093,-151.0,0.00018997,2]
[377751341,1754532633104,-151.0,0.00018997,2]
[377751343,1754532633114,-151.0,0.00018997,2]
[377751345,1754532633123,-151.0,0.00019,2]
[377751347,1754532633133,-280.786407,0.00019,2]
[377751349,1754532633143,-151.0,0.00019,2]
[377751351,1754532633154,-210.0,0.0001905,2]
[377751353,1754532633169,-1276.08,0.00019151,14]
[377751355,1754532633179,-169.57,0.00019162,2]
[377751357,1754532633189,-151.0,0.00019178,2]
[377751359,1754532633199,-294.34958737,0.00019178,7]
[377751361,1754532633208,-1500.0,0.00019178,7]
[377751363,1754532633218,-1500.0,0.00019178,7]
[377751365,1754532633228,-1500.0,0.00019178,7]
[377751367,1754532633237,-1500.0,0.00019178,7]
[377751369,1754532633246,-1500.0,0.00019178,7]
[377751371,1754532633256,-1500.0,0.00019178,7]
[377751373,1754532633265,-1500.0,0.00019178,7]
[377751375,1754532633275,-1500.0,0.00019178,7]
[377751377,1754532633285,-1343.77905565,0.00019178,7]
[377751602,1754532640521,-156.22094435,0.00019178,7]
[377751604,1754532640532,-343.77905565,0.00019178,7]
[377751875,1754532643181,-1156.22094435,0.00019178,7]
[377751877,1754532643190,-786.25893882,0.00019178,7]
[377751886,1754532643391,-692.9213552,0.00019178,7]
[377751908,1754532646544,-20.81970598,0.00019178,7]
[377751909,1754532646557,-21.49803726,0.00019178,7]
[377751910,1754532646591,-1478.50196274,0.00019178,7]
[377751911,1754532646604,-259.35683226,0.00019178,7]
[377751914,1754532776527,-1500.0,0.00019178,7]
[377751915,1754532776552,-1500.0,0.00019178,7]
[377751916,1754532776579,-1500.0,0.00019178,7]
[377751917,1754532776606,-1500.0,0.00019178,7]
[377751918,1754532776634,-1500.0,0.00019178,7]
[377751919,1754532776658,-1500.0,0.00019178,7]
[377751920,1754532776685,-1500.0,0.00019178,7]
[377751921,1754532776710,-1500.0,0.00019178,7]
[377751922,1754532776734,-1500.0,0.00019178,7]
[377751923,1754532776758,-1500.0,0.00019178,7]
[377751924,1754532776781,-1500.0,0.00019178,7]
[377751925,1754532776806,-1500.0,0.00019178,7]
[377751926,1754532776830,-1500.0,0.00019178,7]
[377751927,1754532776855,-1500.0,0.00019178,7]
[377751928,1754532776881,-1500.0,0.00019178,7]
[377751929,1754532776906,-1500.0,0.00019178,7]
[377751930,1754532776931,-492.101299,0.00019178,7]
[377751931,1754532776957,-211.58213282,0.00019178,7]
[377751932,1754532776981,-457.55740054,0.00019178,7]
[377751936,1754532841548,1000.0,0.00018873,4]
[377751937,1754532841634,1000.0,0.00019026,4]
[377751938,1754532847150,221.79,0.00013699,2]
[377751942,1754532898267,207.0,0.000164,2]
[377751943,1754532899292,203.0,0.0001758,2]
[377751944,1754532930929,666.0,0.00018829,3]
[377751946,1754532943748,250.38,0.00015068,2]
[377751947,1754532943935,250.38,0.00016708,2]
[377751948,1754532957367,150.0,0.00030136,120]
[377751949,1754532961532,1000.0,0.00018559,4]
[377751950,1754532961668,1000.0,0.00018739,4]
[377751951,1754532969795,150.0,0.00030136,120]
[377751952,1754533002402,150.0,0.00030136,120]
[377751953,1754533008592,150.0,0.00030136,120]
[377751954,1754533014056,150.0,0.00030136,120]
[377751955,1754533021267,-250.38,0.00018348,2]
[377751956,1754533021297,-198.0,0.0001877,2]
[377751957,1754533021323,-188.6,0.00018796,2]
[377751958,1754533021349,-151.29,0.00018796,2]
[377751959,1754533021374,-420.02,0.00018829,2]
[377751960,1754533021401,-1200.0,0.00018873,2]
[377751961,1754533021427,-23900.0,0.00018874,2]
[377751962,1754533021457,-250.0,0.00019026,2]
[377751963,1754533021483,-151.0,0.00019178,2]
[377751964,1754533021509,-151.0,0.00019178,2]
[377751965,1754533021536,-177.69,0.00019178,2]
[377751966,1754533021563,-177.70371863,0.00019385,2]
[377751967,1754533021590,-277.35679052,0.00019424,2]
[377751968,1754533021618,-351.89,0.00019478,2]
[377751969,1754533021650,-465.80420878,0.00019485,2]
[377751970,1754533021684,-1515.628,0.00019491,2]
[377751971,1754533021710,-168.81,0.00019685,2]
[377751972,1754533021736,-843.85,0.000197,2]
[377751973,1754533021761,-156.587,0.00019726,2]
[377751974,1754533021786,-150.0,0.00019819,2]
[377751975,1754533021812,-150.0,0.00019819,2]
[377751976,1754533021837,-150.0,0.00019819,2]
[377751977,1754533021869,-201.99718301,0.00019819,2]
[377751978,1754533021896,-500.0,0.00019819,2]
[377751979,1754533021924,-200.0,0.00019825,2]
[377751980,1754533021952,-215.26313184,0.00019849,2]
[377751981,1754533021978,-193.99337913,0.00019849,2]
[377751982,1754533022007,-150.0,0.00019849,2]
[377751983,1754533022035,-150.0,0.00019849,2]
[377751984,1754533022063,-200.38447837,0.00019849,2]
[377751985,1754533022089,-156.54772735,0.00019849,2]
[377751986,1754533022116,-150.0,0.00019849,2]
[377751987,1754533022143,-150.0,0.00019849,2]
[377751988,1754533022170,-150.0,0.00019849,2]
[377751989,1754533022196,-152.9980152,0.00019849,2]
[377751990,1754533022222,-150.0,0.00019849,2]
[377751991,1754533022247,-152.00668922,0.00019849,2]
[377751992,1754533022273,-160.0,0.00019873,2]
[377751993,1754533022299,-416.03518578,0.00019873,2]
[377751994,1754533022325,-1000.0,0.00019885,2]
[377751995,1754533022351,-600.4712,0.00019885,2]
[377751996,1754533022383,-2500.0,0.00019885,2]
[377751997,1754533022412,-6539.69067936,0.00019885,2]
[377751998,1754533022439,-1000.0,0.00019885,2]
[377751999,1754533022467,-1000.0,0.00019885,2]
[377752000,1754533022493,-1000.0,0.00019885,2]
[377752001,1754533022522,-1000.0,0.00019885,2]
[377752002,1754533022550,-1005.3332,0.00019885,2]
[377752003,1754533022576,-1749.60002115,0.00019885,2]
[377752004,1754533022602,-2150.9007598,0.0001989,2]
[377752005,1754533022627,-150.88021223,0.000199,2]
[377752006,1754533022654,-157.21404567,0.000199,2]
[377752007,1754533022679,-5000.0,0.000199,2]
[377752008,1754533022705,-1300.0,0.000199,7]
[377752009,1754533022732,-4482.12989142,0.000199,2]
[377752010,1754533022757,-178.40909248,0.000199,2]
[377752011,1754533022782,-253.15244283,0.000199,2]
[377752012,1754533022808,-150.0,0.000199,2]
[377752013,1754533023269,-168.9440946,0.000199,2]
[377752014,1754533023298,-380.55552039,0.000199,2]
[377752015,1754533023325,-194.0,0.0001995,2]
[377752016,1754533023351,-7067.5979881,0.00019957,2]
[377752017,1754533023375,-9875.29730877,0.00019975,2]
[377752018,1754533023402,-500.0,0.00019984,2]
[377752019,1754533023428,-500.0,0.00019984,2]
[377752020,1754533023455,-500.0,0.00019984,2]
[377752021,1754533023483,-500.0,0.00019984,2]
[377752022,1754533023512,-500.0,0.00019984,2]
[377752023,1754533023540,-500.0,0.00019984,2]
[377752024,1754533023569,-550.0,0.00019984,2]
[377752025,1754533023603,-500.0,0.00019984,2]
[377752026,1754533023630,-177.3114267,0.00019984,2]
[377752027,1754533023657,-500.0,0.00019984,2]
[377752028,1754533023683,-500.0,0.00019984,2]
[377752029,1754533023710,-577.64134199,0.00019984,2]
[377752030,1754533023740,-500.0,0.00019984,2]
[377752031,1754533023768,-500.0,0.00019984,2]
[377752032,1754533023796,-500.0,0.00019984,2]
[377752033,1754533023824,-500.0,0.00019984,2]
[377752034,1754533023852,-500.0,0.00019984,2]
[377752035,1754533023880,-500.0,0.00019984,2]
[377752036,1754533023907,-500.0,0.00019984,2]
[377752037,1754533023936,-500.0,0.00019984,2]
[377752038,1754533023966,-500.0,0.00019984,2]
[377752039,1754533023994,-500.0,0.00019984,2]
[377752040,1754533024022,-500.0,0.00019984,2]
[377752041,1754533024053,-500.0,0.00019984,2]
[377752042,1754533024082,-500.0,0.00019984,2]
[377752043,1754533024112,-500.0,0.00019984,2]
[377752044,1754533024146,-500.0,0.00019984,2]
[377752045,1754533024175,-500.0,0.00019984,2]
[377752046,1754533024204,-500.0,0.00019984,2]
[377752047,1754533024234,-500.0,0.00019984,2]
[377752048,1754533024262,-325.23908517,0.00019984,2]
[377752049,1754533024292,-500.0,0.00019984,2]
[377752050,1754533024322,-500.0,0.00019984,2]
[377752051,1754533024350,-500.0,0.00019984,2]
[377752052,1754533024378,-500.0,0.00019984,2]
[377752053,1754533024406,-500.0,0.00019984,2]
[377752054,1754533024434,-500.0,0.00019984,2]
[377752055,1754533024463,-500.0,0.00019984,2]
[377752056,1754533024491,-500.0,0.00019984,2]
[377752057,1754533024523,-500.0,0.00019984,2]
[377752058,1754533024551,-236.08884673,0.00019984,2]
[377752059,1754533024580,-500.0,0.00019984,2]
[377752060,1754533024608,-500.0,0.00019984,2]
[377752061,1754533024636,-500.0,0.00019984,2]
[377752062,1754533024669,-500.0,0.00019984,2]
[377752063,1754533024698,-500.0,0.00019984,2]
[377752064,1754533024725,-500.0,0.00019984,2]
[377752065,1754533024752,-600.00000001,0.00019984,2]
[377752066,1754533024780,-500.0,0.00019984,2]
[377752067,1754533024807,-500.0,0.00019984,2]
[377752068,1754533024836,-500.0,0.00019984,2]
[377752069,1754533024864,-198.88065271,0.00019984,2]
[377752070,1754533024893,-500.0,0.00019984,2]
[377752071,1754533024921,-500.0,0.00019984,2]
[377752072,1754533024951,-500.0,0.00019984,2]
[377752073,1754533024979,-500.0,0.00019984,2]
[377752074,1754533025008,-500.0,0.00019984,2]
[377752075,1754533025037,-500.0,0.00019984,2]
[377752076,1754533025065,-200.0,0.00019984,2]
[377752077,1754533025094,-500.0,0.00019984,2]
[377752078,1754533025122,-500.0,0.00019984,2]
[377752079,1754533025148,-258.02831829,0.00019984,2]
[377752080,1754533025173,-39912.19347236,0.00019985,2]
[377752081,1754533025199,-151.0,0.00019985,2]
[377752082,1754533025224,-767.313862,0.00019985,2]
[377752083,1754533025250,-767.313862,0.00019985,2]
[377752084,1754533025275,-151.0,0.00019985,2]
[377752085,1754533025299,-151.0,0.00019985,2]
[377752086,1754533025324,-767.313862,0.00019985,2]
[377752087,1754533025349,-767.313862,0.00019985,2]
[377752088,1754533025375,-151.0,0.00019985,2]
[377752089,1754533025400,-162.750013,0.00019985,2]
[377752090,1754533025424,-172.485387,0.00019985,2]
[377752091,1754533025450,-151.0,0.00019985,2]
[377752092,1754533025475,-151.0,0.00019985,2]
[377752093,1754533025499,-158.131434,0.00019985,2]
[377752094,1754533025525,-178.762722,0.00019985,2]
[377752095,1754533025550,-178.762722,0.00019985,2]
[377752096,1754533025575,-178.762722,0.00019985,2]
[377752097,1754533025600,-178.762722,0.00019985,2]
[377752098,1754533025624,-161.144989,0.00019985,2]
[377752099,1754533025648,-151.0,0.00019985,2]
[377752100,1754533025672,-151.0,0.00019985,2]
[377752101,1754533025696,-151.0,0.00019985,2]
[377752102,1754533025721,-151.0,0.00019985,2]
[377752103,1754533025745,-151.0,0.00019985,2]
[377752104,1754533025769,-151.0,0.00019985,2]
[377752105,1754533025794,-151.0,0.00019985,2]
[377752106,1754533025819,-151.0,0.00019985,2]
[377752107,1754533026128,-151.0,0.00019985,2]
[377752108,1754533026159,-151.0,0.00019985,2]
[377752109,1754533026183,-209.011408,0.00019985,2]
[377752110,1754533026209,-300.402439,0.00019985,2]
[377752111,1754533026236,-156.694892,0.00019985,2]
[377752112,1754533026263,-151.0,0.00019985,2]
[377752113,1754533026288,-151.0,0.00019985,2]
[377752114,1754533026312,-231.78307,0.00019985,2]
[377752115,1754533026336,-421.197208,0.00019985,2]
[377752116,1754533026360,-421.197208,0.00019985,2]
[377752117,1754533026384,-22768.50050741,0.00019985,2]
[377752118,1754533062461,172.56038486,0.00030135,120]
[377752119,1754533083351,1000.0,0.0001902,4]
[377752121,1754533144272,-1951.8288,0.0002,20]
[377752124,1754533165181,-150.0,0.00018862,2]
[377752126,1754533202857,1000.0,0.00018941,4]
[377752128,1754533222204,150.0,0.00023,30]
[377752129,1754533222476,289.22765,0.00023,30]
[377752131,1754533444443,1000.0,0.0001861,4]
[377752132,1754533444533,1000.0,0.00018902,4]
[377752134,1754533509757,356.02414631,0.000154,2]
[377752135,1754533511623,311.27,0.00030137,120]
[377752136,1754533519559,310.87106632,9e-05,2]
[377752137,1754533555054,6969.50506529,0.00015,10]
[377752138,1754533561992,1000.0,0.00018564,4]
[377752139,1754533562070,1000.0,0.00018825,4]
[377752140,1754533569189,683.09757483,0.00015,2]
[377752142,1754533620130,2919.18688327,0.00015,14]
[377752151,1754533682509,1000.0,0.0001824,4]
[377752152,1754533682609,1000.0,0.00018596,4]
[377752159,1754533731311,234.24,0.00013699,2]
[377752162,1754533779630,717.0,0.00030137,120]
[377752164,1754533806696,1000.0,0.0001824,4]
[377752165,1754533806738,1000.0,0.00018584,4]
[377752189,1754533832841,-191.0,0.000182,2]
[377752190,1754533832850,-508.0,0.00018279,2]
[377752191,1754533832858,-151.0,0.00018735,2]
[377752192,1754533832866,-4899.47,0.00018806,2]
[377752193,1754533832874,-1200.0,0.00018899,2]
[377752194,1754533832883,-2500.0,0.000189,2]
[377752195,1754533832893,-587.79,0.00018928,2]
[377752196,1754533832903,-4033.91690226,0.0001893,2]
[377752197,1754533832913,-342.49996836,0.0001893,2]
[377752198,1754533832922,-211.13,0.00018966,2]
[377752199,1754533832931,-175.29348244,0.00018999,2]
[377752200,1754533832941,-500.0,0.00018999,2]
[377752201,1754533832950,-500.0,0.00018999,2]
[377752202,1754533832959,-500.0,0.00018999,2]
[377752203,1754533832968,-341.13279319,0.00018999,2]
[377752204,1754533832977,-500.0,0.00018999,2]
[377752205,1754533832987,-500.0,0.00018999,2]
[377752206,1754533832996,-500.0,0.00018999,2]
[377752207,1754533833005,-500.0,0.00018999,2]
[377752208,1754533833015,-500.0,0.00018999,2]
[377752209,1754533833024,-500.0,0.00018999,2]
[377752210,1754533833034,-500.0,0.00018999,2]
[377752211,1754533833044,-500.0,0.00018999,2]
[377752212,1754533833054,-500.0,0.00018999,2]
[377752213,1754533833064,-500.0,0.00018999,2]
[377752214,1754533833075,-500.0,0.00018999,2]
[377752215,1754533833085,-500.0,0.00018999,2]
[377752216,1754533833096,-525.73734389,0.00018999,2]
[377752217,1754533833107,-500.0,0.00018999,2]
[377752218,1754533833117,-600.0,0.00018999,2]
[377752219,1754533833127,-500.0,0.00018999,2]
[377752220,1754533833136,-500.0,0.00018999,2]
[377752221,1754533833146,-500.0,0.00018999,2]
[377752222,1754533833155,-500.0,0.00018999,2]
[377752223,1754533833166,-500.0,0.00018999,2]
[377752224,1754533833175,-500.0,0.00018999,2]
[377752225,1754533833185,-500.0,0.00018999,2]
[377752226,1754533833194,-12691.58965984,0.00019,2]
[377752227,1754533833227,-452.79881725,0.00019,2]
[377752228,1754533833239,-1154.4,0.00019,2]
[377752229,1754533833250,-23050.0,0.00019,2]
[377752230,1754533833295,-296.0765777,0.00019,2]
[377752231,1754533833307,-166398.24856669,0.00019,2]
[377752232,1754533833318,-117706.29877059,0.00019,2]
[377752233,1754533833330,-2935.31552703,0.00019,2]
[377752357,1754533839721,-1737.43911212,0.00019,2]
[377752386,1754533840167,-408.78,0.00019,2]
[377752389,1754533840193,-4028.98646561,0.00019,2]
[377752397,1754533840231,-0.00962884,0.00019,2]
[377752461,1754533840851,-320.6160001,0.00019,2]
[377752629,1754533922571,284.06721908,0.00018881,4]
[377752630,1754533922600,715.93278092,0.00018881,4]
[377752631,1754533922655,1000.0,0.00018972,4]
[377752641,1754533999484,400.0,0.00030137,120]
[377752661,1754534043476,1000.0,0.00018818,4]
[377752662,1754534060649,400.0,0.00030137,120]
[377752679,1754534118083,327.54,0.00015068,2]
[377752680,1754534118369,327.54,0.00016702,2]
[377752682,1754534224247,175.0,0.00018657,7]
[377752683,1754534317633,3160.0,0.00030136,120]
[377752710,1754534655857,508.0,0.00017887,2]
[377752775,1754534779089,569.54,0.000301,120]
[377752778,1754534822553,545.81,0.0003012,120]
[377752779,1754534826502,230.54,0.00013699,2]
[377752787,1754534851479,545.81,0.0003011,120]
[377752788,1754534998026,545.81,0.00030136,120]
[377752791,1754535031419,-212.55,0.00018137,2]
[377752792,1754535031429,-171.7,0.00018198,2]
[377752793,1754535031438,-1200.0,0.00018249,2]
[377752794,1754535031447,-7239.99,0.0001825,2]
[377752795,1754535031456,-1000.0,0.00018302,2]
[377752796,1754535031466,-300.0,0.00018311,2]
[377752797,1754535031475,-300.0,0.00018311,2]
[377752798,1754535031484,-1000.0,0.00018312,2]
[377752799,1754535031493,-327.54,0.00018335,2]
[377752800,1754535031503,-277.35679052,0.00018449,2]
[377752801,1754535031512,-3806.27,0.0001846,2]
[377752802,1754535031521,-3058.27,0.0001848,2]
[377752803,1754535031530,-263.02,0.00018562,2]
[377752804,1754535031540,-500.0,0.00018575,2]
[377752805,1754535031549,-232.02,0.00018637,2]
[377752806,1754535031558,-168.86,0.00018665,2]
[377752807,1754535031567,-15000.0,0.00018667,2]
[377752808,1754535031577,-250.0,0.00018736,2]
[377752809,1754535031587,-2375.74931,0.0001881,2]
[377752810,1754535031596,-842.603,0.00018862,2]
[377752811,1754535031605,-2000.0,0.00018862,2]
[377752812,1754535031615,-152.83,0.00018868,2]
[377752813,1754535031624,-5885.72161146,0.000189,2]
[377752814,1754535031634,-152.83,0.00018931,2]
[377752815,1754535031643,-335.93436626,0.00018989,2]
[377752816,1754535031652,-160.0,0.00018989,2]
[377752817,1754535031661,-500.0,0.00018989,2]
[377752818,1754535031671,-500.0,0.00018989,2]
[377752819,1754535031680,-500.0,0.00018989,2]
[377752820,1754535031689,-500.0,0.00018989,2]
[377752821,1754535031698,-500.0,0.00018989,2]
[377752822,1754535031707,-500.0,0.00018989,2]
[377752823,1754535031716,-500.0,0.00018989,2]
[377752824,1754535031725,-500.0,0.00018989,2]
[377752825,1754535031734,-500.0,0.00018989,2]
[377752826,1754535031744,-500.0,0.00018989,2]
[377752827,1754535031753,-354.88043207,0.00018989,2]
[377752828,1754535031762,-152.83,0.00018994,2]
[377752829,1754535031771,-500.0,0.00018999,2]
[377752830,1754535031780,-500.0,0.00018999,2]
[377752831,1754535031790,-500.0,0.00018999,2]
[377752832,1754535031800,-500.0,0.00018999,2]
[377752833,1754535031809,-412.78987436,0.00018999,2]
[377752834,1754535031818,-1640.55773832,0.00019,2]
[377752835,1754535031830,-9276.07666152,0.00019,2]
[377752836,1754535031873,-604.0,0.00019,2]
[377752837,1754535031888,-500.07769018,0.00019,2]
[377752839,1754535031906,-2923.87535566,0.00019,2]
[377752844,1754535031946,-14525.10238857,0.00019,2]
[377752863,1754535033074,187.0,0.000171,2]
[377752933,1754535038535,-315.44,0.00018205,2]
[377752935,1754535038543,-183.0,0.0001828,2]
[377752936,1754535038550,-6670.55065,0.00019,2]
[377752938,1754535038560,-588.0,0.00019,2]
[377752943,1754535038599,-306.5,0.00019,2]
[377753030,1754535039496,-8860.52455169,0.00019,2]
[377753031,1754535039514,-45482.41233697,0.00019,2]
[377753032,1754535039523,-25082.40149795,0.00019,2]
[377753033,1754535039532,-157.13292579,0.00019,2]